fUST/lending_fUST_20250903
["ID","MTS","AMOUNT","RATE_DAILY","PERIOD"]
[383093900,1756845057208,-480.0,0.0001452,2]
[383093901,1756845057217,-480.0,0.0001452,2]
[383093902,1756845057226,-480.0,0.0001452,2]
[383093903,1756845057237,-480.0,0.0001452,2]
[383093904,1756845057247,-480.0,0.0001452,2]
[383093905,1756845057258,-480.0,0.0001452,2]
[383093906,1756845057267,-480.0,0.0001452,2]
[383093907,1756845057277,-480.0,0.0001452,2]
[383093908,1756845057287,-480.0,0.0001452,2]
[383093909,1756845057297,-480.0,0.0001452,2]
[383093910,1756845057306,-437.86,0.0001452,2]
[383093911,1756845057316,-480.0,0.0001452,2]
[383093912,1756845057327,-325.13,0.0001452,2]
[383093913,1756845057336,-480.0,0.0001452,2]
[383093914,1756845057346,-500.22271763,0.0001452,2]
[383093915,1756845057355,-480.0,0.0001452,2]
[383093916,1756845057365,-480.0,0.0001452,2]
[383093917,1756845057377,-480.0,0.0001452,2]
[383093918,1756845057386,-480.0,0.0001452,2]
[383093919,1756845057397,-480.0,0.0001452,2]
[383093920,1756845057411,-480.0,0.0001452,2]
[383093921,1756845057421,-480.0,0.0001452,2]
[383093922,1756845057430,-480.0,0.0001452,2]
[383093923,1756845057441,-480.0,0.0001452,2]
[383093924,1756845057450,-480.0,0.0001452,2]
[383093925,1756845057459,-480.0,0.0001452,2]
[383093926,1756845057468,-480.0,0.0001452,2]
[383093927,1756845057479,-480.0,0.0001452,2]
[383093928,1756845057489,-480.0,0.0001452,2]
[383093929,1756845057499,-480.0,0.0001452,2]
[383093930,1756845057509,-480.0,0.0001452,2]
[383093931,1756845057520,-480.0,0.0001452,2]
[383093932,1756845057530,-480.0,0.0001452,2]
[383093933,1756845057542,-480.0,0.0001452,2]
[383093934,1756845057552,-1167.44,0.0001452,2]
[383093935,1756845057562,-480.0,0.0001452,2]
[383093936,1756845057573,-480.0,0.0001452,2]
[383093937,1756845057583,-480.0,0.0001452,2]
[383093938,1756845057594,-480.0,0.0001452,2]
[383093939,1756845057604,-480.0,0.0001452,2]
[383093940,1756845057613,-480.0,0.0001452,2]
[383093941,1756845057623,-2332.29,0.0001452,2]
[383093942,1756845057633,-480.0,0.0001452,2]
[383093943,1756845057642,-3388.72,0.0001452,2]
[383093944,1756845057651,-480.0,0.0001452,2]
[383093945,1756845057661,-480.0,0.0001452,2]
[383093946,1756845057671,-480.0,0.0001452,2]
[383093947,1756845057680,-480.0,0.0001452,2]
[383093948,1756845057689,-573.9,0.0001452,2]
[383093949,1756845057698,-480.0,0.0001452,2]
[383093950,1756845057707,-480.0,0.0001452,2]
[383093951,1756845057716,-480.0,0.0001452,2]
[383093952,1756845057726,-480.0,0.0001452,2]
[383093953,1756845057735,-484.3,0.0001452,2]
[383093954,1756845057746,-480.0,0.0001452,2]
[383093955,1756845057759,-480.0,0.0001452,2]
[383093956,1756845057769,-480.0,0.0001452,2]
[383093957,1756845057778,-480.0,0.0001452,2]
[383093958,1756845057793,-480.0,0.0001452,2]
[383093959,1756845057804,-480.0,0.0001452,2]
[383093960,1756845057814,-2095.72,0.0001452,2]
[383093961,1756845057824,-540.11,0.0001452,2]
[383093962,1756845057834,-689.91,0.0001452,2]
[383093963,1756845057843,-480.0,0.0001452,2]
[383093964,1756845057853,-2359.15,0.0001452,2]
[383093965,1756845057862,-675.67,0.0001452,2]
[383093966,1756845057872,-480.0,0.0001452,2]
[383093967,1756845057881,-480.0,0.0001452,2]
[383093968,1756845057891,-996.41,0.0001452,2]
[383093969,1756845057901,-480.0,0.0001452,2]
[383093970,1756845057911,-513.36,0.0001452,2]
[383093971,1756845057920,-480.0,0.0001452,2]
[383093972,1756845057929,-480.0,0.0001452,2]
[383093973,1756845057938,-480.0,0.0001452,2]
[383093974,1756845057947,-480.0,0.0001452,2]
[383093975,1756845057957,-1578.19,0.0001452,2]
[383093976,1756845057966,-480.0,0.0001452,2]
[383093977,1756845057975,-751.2,0.0001452,2]
[383093978,1756845057985,-480.0,0.0001452,2]
[383093979,1756845057994,-480.0,0.0001452,2]
[383093980,1756845058004,-480.0,0.0001452,2]
[383093981,1756845058014,-480.0,0.0001452,2]
[383093982,1756845058023,-480.0,0.0001452,2]
[383093983,1756845058032,-480.0,0.0001452,2]
[383093984,1756845058043,-480.0,0.0001452,2]
[383093985,1756845058052,-480.0,0.0001452,2]
[383093986,1756845058062,-480.0,0.0001452,2]
[383093987,1756845058071,-480.0,0.0001452,2]
[383093988,1756845058081,-480.0,0.0001452,2]
[383093989,1756845058091,-480.0,0.0001452,2]
[383093990,1756845058100,-480.0,0.0001452,2]
[383093991,1756845058110,-1531.57,0.0001452,2]
[383093992,1756845058120,-565.86,0.0001452,2]
[383093993,1756845058129,-480.0,0.0001452,2]
[383093994,1756845058138,-480.0,0.0001452,2]
[383093995,1756845058148,-480.0,0.0001452,2]
[383093996,1756845058158,-2079.83,0.0001452,2]
[383093997,1756845058167,-480.0,0.0001452,2]
[383093998,1756845058176,-480.0,0.0001452,2]
[383093999,1756845058186,-480.0,0.0001452,2]
[383094000,1756845058195,-480.0,0.0001452,2]
[383094001,1756845058205,-1093.05,0.0001452,2]
[383094002,1756845058215,-589.25,0.0001452,2]
[383094003,1756845058225,-480.0,0.0001452,2]
[383094004,1756845058234,-2376.02,0.0001452,2]
[383094005,1756845058244,-480.0,0.0001452,2]
[383094006,1756845058253,-544.19,0.0001452,2]
[383094007,1756845058263,-480.0,0.0001452,2]
[383094008,1756845058272,-480.0,0.0001452,2]
[383094009,1756845058282,-582.94,0.0001452,2]
[383094010,1756845058293,-480.0,0.0001452,2]
[383094011,1756845058302,-219.16724827,0.0001452,2]
[383094012,1756845058312,-480.0,0.0001452,2]
[383094013,1756845058322,-480.0,0.0001452,2]
[383094014,1756845058331,-480.0,0.0001452,2]
[383094015,1756845058340,-480.0,0.0001452,2]
[383094016,1756845058350,-1197.43,0.0001452,2]
[383094017,1756845058359,-480.0,0.0001452,2]
[383094018,1756845058369,-1244.68,0.0001452,2]
[383094019,1756845058378,-480.0,0.0001452,2]
[383094020,1756845058387,-767.09,0.0001452,2]
[383094021,1756845058400,-480.0,0.0001452,2]
[383094022,1756845058409,-480.0,0.0001452,2]
[383094023,1756845058419,-480.0,0.0001452,2]
[383094024,1756845058428,-480.0,0.0001452,2]
[383094025,1756845058438,-480.0,0.0001452,2]
[383094026,1756845058448,-480.0,0.0001452,2]
[383094027,1756845058457,-1939.67,0.0001452,2]
[383094028,1756845058466,-480.0,0.0001452,2]
[383094029,1756845058478,-591.44,0.0001452,2]
[383094030,1756845058488,-480.0,0.0001452,2]
[383094031,1756845058498,-480.0,0.0001452,2]
[383094032,1756845058507,-567.42482152,0.00014521,2]
[383094033,1756845058516,-486.9843952,0.00014521,2]
[383094034,1756845058525,-1000.0,0.00014521,2]
[383094035,1756845058536,-500.81739419,0.00014521,2]
[383094036,1756845058546,-1000.0,0.00014521,2]
[383094037,1756845058555,-500.0,0.00014521,2]
[383094038,1756845058566,-1000.0,0.00014521,2]
[383094039,1756845058575,-1000.82084185,0.00014521,2]
[383094040,1756845058584,-500.0,0.00014521,2]
[383094041,1756845058594,-500.0,0.00014521,2]
[383094042,1756845058603,-500.0,0.00014521,2]
[383094043,1756845058613,-502.01000521,0.00014521,2]
[383094044,1756845058623,-1000.0,0.00014521,2]
[383094045,1756845058632,-500.0,0.00014521,2]
[383094046,1756845058641,-500.0,0.00014521,2]
[383094047,1756845058651,-500.0,0.00014521,2]
[383094048,1756845058660,-1000.0,0.00014521,2]
[383094049,1756845058669,-500.0,0.00014521,2]
[383094050,1756845058679,-1000.54581016,0.00014521,2]
[383094051,1756845058689,-500.0,0.00014521,2]
[383094052,1756845058699,-1000.0,0.00014521,2]
[383094053,1756845058708,-1000.0,0.00014521,2]
[383094054,1756845058718,-500.75102495,0.00014521,2]
[383094055,1756845058727,-366.11593609,0.00014521,2]
[383094056,1756845058737,-1000.0,0.00014521,2]
[383094057,1756845058747,-1000.0,0.00014521,2]
[383094058,1756845058756,-1000.0,0.00014521,2]
[383094059,1756845058765,-1000.0,0.00014521,2]
[383094060,1756845058775,-502.84680695,0.00014521,2]
[383094061,1756845058785,-210.0,0.00014538,2]
[383094062,1756845058795,-151.0,0.000146,2]
[383094063,1756845058805,-320.0,0.00014637,2]
[383094064,1756845058815,-210.0,0.00014638,2]
[383094065,1756845058824,-168.0,0.00014727,2]
[383094066,1756845058834,-500.0,0.00014764,2]
[383094067,1756845058844,-500.0,0.00014764,2]
[383094068,1756845058853,-500.0,0.00014764,2]
[383094069,1756845058863,-500.0,0.00014764,2]
[383094070,1756845058873,-500.0,0.00014764,2]
[383094071,1756845058882,-500.0,0.00014764,2]
[383094072,1756845058891,-554.83513381,0.00014764,2]
[383094073,1756845058901,-500.0,0.00014764,2]
[383094074,1756845058910,-200.0,0.00014793,2]
[383094075,1756845058920,-292.0,0.00014794,2]
[383094076,1756845058929,-500.0,0.00014794,2]
[383094077,1756845058939,-545.96,0.00014794,2]
[383094078,1756845058949,-1407.28,0.00014794,2]
[383094079,1756845058959,-480.0,0.00014794,2]
[383094080,1756845058968,-480.0,0.00014794,2]
[383094081,1756845058978,-480.0,0.00014794,2]
[383094082,1756845059085,-480.0,0.00014794,2]
[383094083,1756845059095,-480.0,0.00014794,2]
[383094084,1756845059104,-456.7,0.00014794,2]
[383094085,1756845059113,-300.47,0.00014794,2]
[383094086,1756845059122,-349.92,0.00014794,2]
[383094087,1756845059132,-480.0,0.00014794,2]
[383094088,1756845059141,-480.0,0.00014794,2]
[383094089,1756845059151,-480.0,0.00014794,2]
[383094090,1756845059160,-480.0,0.00014794,2]
[383094091,1756845059170,-171.65036991,0.00014794,2]
[383094092,1756845059180,-480.0,0.00014794,2]
[383094093,1756845059189,-450.89,0.00014794,2]
[383094094,1756845059199,-480.0,0.00014794,2]
[383094095,1756845059209,-480.0,0.00014794,2]
[383094096,1756845059219,-480.0,0.00014794,2]
[383094097,1756845059228,-480.0,0.00014794,2]
[383094098,1756845059238,-480.0,0.00014794,2]
[383094099,1756845059247,-480.0,0.00014794,2]
[383094100,1756845059257,-468.77,0.00014794,2]
[383094101,1756845059266,-480.0,0.00014794,2]
[383094102,1756845059275,-480.0,0.00014794,2]
[383094103,1756845059285,-480.0,0.00014794,2]
[383094104,1756845059296,-480.0,0.00014794,2]
[383094105,1756845059306,-480.0,0.00014794,2]
[383094106,1756845059315,-480.0,0.00014794,2]
[383094107,1756845059325,-480.0,0.00014794,2]
[383094108,1756845059334,-480.0,0.00014794,2]
[383094109,1756845059344,-480.0,0.00014794,2]
[383094110,1756845059354,-480.0,0.00014794,2]
[383094111,1756845059364,-592.4,0.00014794,2]
[383094112,1756845059373,-380.06,0.00014794,2]
[383094113,1756845059383,-480.0,0.00014794,2]
[383094114,1756845059392,-480.0,0.00014794,2]
[383094115,1756845059403,-480.0,0.00014794,2]
[383094116,1756845059415,-480.0,0.00014794,2]
[383094117,1756845059425,-480.0,0.00014794,2]
[383094118,1756845059434,-480.0,0.00014794,2]
[383094119,1756845059444,-1167.44,0.00014794,2]
[383094120,1756845059454,-480.0,0.00014794,2]
[383094121,1756845059463,-480.0,0.00014794,2]
[383094122,1756845059473,-480.0,0.00014794,2]
[383094123,1756845059484,-480.0,0.00014794,2]
[383094124,1756845059494,-480.0,0.00014794,2]
[383094125,1756845059503,-2332.29,0.00014794,2]
[383094126,1756845059513,-480.0,0.00014794,2]
[383094127,1756845059522,-3388.72,0.00014794,2]
[383094128,1756845059532,-480.0,0.00014794,2]
[383094129,1756845059544,-480.0,0.00014794,2]
[383094130,1756845059553,-480.0,0.00014794,2]
[383094131,1756845059562,-573.9,0.00014794,2]
[383094132,1756845059573,-480.0,0.00014794,2]
[383094133,1756845059582,-480.0,0.00014794,2]
[383094134,1756845059592,-480.0,0.00014794,2]
[383094135,1756845059602,-480.0,0.00014794,2]
[383094136,1756845059611,-484.3,0.00014794,2]
[383094137,1756845059621,-480.0,0.00014794,2]
[383094138,1756845059630,-480.0,0.00014794,2]
[383094139,1756845059640,-480.0,0.00014794,2]
[383094140,1756845059649,-480.0,0.00014794,2]
[383094141,1756845059659,-480.0,0.00014794,2]
[383094142,1756845059668,-2095.72,0.00014794,2]
[383094143,1756845059678,-689.91,0.00014794,2]
[383094144,1756845059688,-540.11,0.00014794,2]
[383094145,1756845059697,-480.0,0.00014794,2]
[383094146,1756845059706,-2359.15,0.00014794,2]
[383094147,1756845059715,-675.67,0.00014794,2]
[383094148,1756845059724,-480.0,0.00014794,2]
[383094149,1756845059735,-480.0,0.00014794,2]
[383094150,1756845059744,-996.41,0.00014794,2]
[383094151,1756845059754,-480.0,0.00014794,2]
[383094152,1756845059763,-513.36,0.00014794,2]
[383094153,1756845059773,-480.0,0.00014794,2]
[383094154,1756845059783,-480.0,0.00014794,2]
[383094155,1756845059794,-480.0,0.00014794,2]
[383094156,1756845059804,-480.0,0.00014794,2]
[383094157,1756845059814,-1578.19,0.00014794,2]
[383094158,1756845059823,-480.0,0.00014794,2]
[383094159,1756845059833,-751.2,0.00014794,2]
[383094160,1756845059842,-480.0,0.00014794,2]
[383094161,1756845059851,-480.0,0.00014794,2]
[383094162,1756845059861,-455.35537526,0.00014794,2]
[383094163,1756845059871,-480.0,0.00014794,2]
[383094164,1756845059881,-480.0,0.00014794,2]
[383094165,1756845059891,-480.0,0.00014794,2]
[383094166,1756845059900,-480.0,0.00014794,2]
[383094167,1756845059910,-480.0,0.00014794,2]
[383094168,1756845059919,-480.0,0.00014794,2]
[383094169,1756845059929,-480.0,0.00014794,2]
[383094170,1756845059938,-480.0,0.00014794,2]
[383094171,1756845059948,-480.0,0.00014794,2]
[383094172,1756845059958,-480.0,0.00014794,2]
[383094173,1756845059967,-1531.57,0.00014794,2]
[383094174,1756845059977,-565.86,0.00014794,2]
[383094175,1756845059986,-480.0,0.00014794,2]
[383094176,1756845059996,-480.0,0.00014794,2]
[383094177,1756845060005,-480.0,0.00014794,2]
[383094178,1756845060016,-2079.83,0.00014794,2]
[383094179,1756845060026,-480.0,0.00014794,2]
[383094180,1756845060036,-480.0,0.00014794,2]
[383094181,1756845060048,-480.0,0.00014794,2]
[383094182,1756845060058,-480.0,0.00014794,2]
[383094183,1756845060068,-1093.05,0.00014794,2]
[383094184,1756845060078,-589.25,0.00014794,2]
[383094185,1756845060087,-480.0,0.00014794,2]
[383094186,1756845060097,-2376.02,0.00014794,2]
[383094187,1756845060106,-480.0,0.00014794,2]
[383094188,1756845060115,-544.19,0.00014794,2]
[383094189,1756845060125,-395.24,0.00014794,2]
[383094190,1756845060134,-480.0,0.00014794,2]
[383094191,1756845060143,-582.94,0.00014794,2]
[383094192,1756845060153,-480.0,0.00014794,2]
[383094193,1756845060162,-480.0,0.00014794,2]
[383094194,1756845060172,-480.0,0.00014794,2]
[383094195,1756845060181,-480.0,0.00014794,2]
[383094196,1756845060191,-480.0,0.00014794,2]
[383094197,1756845060200,-1197.43,0.00014794,2]
[383094198,1756845060210,-480.0,0.00014794,2]
[383094199,1756845060220,-1244.68,0.00014794,2]
[383094200,1756845060229,-480.0,0.00014794,2]
[383094201,1756845060239,-767.09,0.00014794,2]
[383094202,1756845060248,-480.0,0.00014794,2]
[383094203,1756845060257,-480.0,0.00014794,2]
[383094204,1756845060267,-585.52,0.00014794,2]
[383094205,1756845060277,-480.0,0.00014794,2]
[383094206,1756845060287,-480.0,0.00014794,2]
[383094207,1756845060297,-480.0,0.00014794,2]
[383094208,1756845060306,-1939.67,0.00014794,2]
[383094209,1756845060316,-480.0,0.00014794,2]
[383094210,1756845060326,-591.44,0.00014794,2]
[383094211,1756845060335,-480.0,0.00014794,2]
[383094212,1756845060345,-151.0,0.000148,2]
[383094213,1756845060355,-500.0,0.00014948,2]
[383094214,1756845060365,-1680.0,0.00014957,2]
[383094215,1756845060375,-420.0,0.00014983,2]
[383094216,1756845060385,-151.0,0.00015,2]
[383094217,1756845060395,-160.0,0.00015,2]
[383094218,1756845060407,-200.0,0.00015067,2]
[383094219,1756845060417,-500.0,0.00015068,2]
[383094220,1756845060426,-12500.0,0.00015068,3]
[383094221,1756845060436,-1407.28,0.00015068,2]
[383094222,1756845060447,-606.91,0.00015068,2]
[383094223,1756845060456,-480.0,0.00015068,2]
[383094224,1756845060466,-480.0,0.00015068,2]
[383094225,1756845060477,-480.0,0.00015068,2]
[383094226,1756845060487,-167.05,0.00015068,2]
[383094227,1756845060496,-480.0,0.00015068,2]
[383094228,1756845060505,-480.0,0.00015068,2]
[383094229,1756845060515,-480.0,0.00015068,2]
[383094230,1756845060525,-480.0,0.00015068,2]
[383094231,1756845060535,-460.0,0.00015068,2]
[383094232,1756845060546,-480.0,0.00015068,2]
[383094233,1756845060555,-480.0,0.00015068,2]
[383094234,1756845060565,-480.0,0.00015068,2]
[383094235,1756845060575,-480.0,0.00015068,2]
[383094236,1756845060584,-541.60857783,0.00015068,2]
[383094237,1756845060594,-480.0,0.00015068,2]
[383094238,1756845060604,-480.0,0.00015068,2]
[383094239,1756845060614,-325.25120524,0.00015068,2]
[383094240,1756845060623,-480.0,0.00015068,2]
[383094241,1756845060633,-480.0,0.00015068,2]
[383094242,1756845060643,-480.0,0.00015068,2]
[383094243,1756845060653,-480.0,0.00015068,2]
[383094244,1756845060662,-480.0,0.00015068,2]
[383094245,1756845060671,-480.0,0.00015068,2]
[383094246,1756845060681,-480.0,0.00015068,2]
[383094247,1756845060690,-480.0,0.00015068,2]
[383094248,1756845060699,-480.0,0.00015068,2]
[383094249,1756845060709,-480.0,0.00015068,2]
[383094250,1756845060719,-480.0,0.00015068,2]
[383094251,1756845060728,-480.0,0.00015068,2]
[383094252,1756845060739,-480.0,0.00015068,2]
[383094253,1756845060748,-480.0,0.00015068,2]
[383094254,1756845060757,-1167.44,0.00015068,2]
[383094255,1756845060767,-480.0,0.00015068,2]
[383094256,1756845060777,-480.0,0.00015068,2]
[383094257,1756845060786,-480.0,0.00015068,2]
[383094258,1756845060796,-2332.29,0.00015068,2]
[383094259,1756845060806,-480.0,0.00015068,2]
[383094260,1756845060816,-3388.72,0.00015068,2]
[383094261,1756845060826,-480.0,0.00015068,2]
[383094262,1756845060835,-480.0,0.00015068,2]
[383094263,1756845060844,-480.0,0.00015068,2]
[383094264,1756845060854,-573.9,0.00015068,2]
[383094265,1756845060863,-480.0,0.00015068,2]
[383094266,1756845060872,-480.0,0.00015068,2]
[383094267,1756845060882,-480.0,0.00015068,2]
[383094268,1756845060892,-480.0,0.00015068,2]
[383094269,1756845060901,-484.3,0.00015068,2]
[383094270,1756845060910,-480.0,0.00015068,2]
[383094271,1756845060919,-480.0,0.00015068,2]
[383094272,1756845060929,-480.0,0.00015068,2]
[383094273,1756845060938,-480.0,0.00015068,2]
[383094274,1756845060948,-480.0,0.00015068,2]
[383094275,1756845060958,-160.0,0.00015068,3]
[383094276,1756845060968,-2095.72,0.00015068,2]
[383094277,1756845060977,-540.11,0.00015068,2]
[383094278,1756845060987,-2359.15,0.00015068,2]
[383094279,1756845060997,-689.91,0.00015068,2]
[383094280,1756845061006,-480.0,0.00015068,2]
[383094281,1756845061016,-675.67,0.00015068,2]
[383094282,1756845061025,-480.0,0.00015068,2]
[383094283,1756845061034,-480.0,0.00015068,2]
[383094284,1756845061045,-996.41,0.00015068,2]
[383094285,1756845061054,-480.0,0.00015068,2]
[383094286,1756845061063,-513.36,0.00015068,2]
[383094287,1756845061071,-480.0,0.00015068,2]
[383094288,1756845061081,-480.0,0.00015068,2]
[383094289,1756845061090,-480.0,0.00015068,2]
[383094290,1756845061099,-480.0,0.00015068,2]
[383094291,1756845061108,-1578.19,0.00015068,2]
[383094292,1756845061117,-480.0,0.00015068,2]
[383094293,1756845061126,-751.2,0.00015068,2]
[383094294,1756845061136,-480.0,0.00015068,2]
[383094295,1756845061234,-480.0,0.00015068,2]
[383094296,1756845061245,-480.0,0.00015068,2]
[383094297,1756845061254,-480.0,0.00015068,2]
[383094298,1756845061264,-480.0,0.00015068,2]
[383094299,1756845061273,-480.0,0.00015068,2]
[383094300,1756845061283,-480.0,0.00015068,2]
[383094301,1756845061294,-480.0,0.00015068,2]
[383094302,1756845061304,-480.0,0.00015068,2]
[383094303,1756845061314,-480.0,0.00015068,2]
[383094304,1756845061323,-480.0,0.00015068,2]
[383094305,1756845061333,-480.0,0.00015068,2]
[383094306,1756845061342,-1531.57,0.00015068,2]
[383094307,1756845061352,-565.86,0.00015068,2]
[383094308,1756845061362,-480.0,0.00015068,2]
[383094309,1756845061373,-480.0,0.00015068,2]
[383094310,1756845061384,-480.0,0.00015068,2]
[383094311,1756845061395,-2079.83,0.00015068,2]
[383094312,1756845061409,-480.0,0.00015068,2]
[383094313,1756845061420,-480.0,0.00015068,2]
[383094314,1756845061431,-480.0,0.00015068,2]
[383094315,1756845061442,-480.0,0.00015068,2]
[383094316,1756845061452,-1093.05,0.00015068,2]
[383094317,1756845061461,-589.25,0.00015068,2]
[383094318,1756845061470,-480.0,0.00015068,2]
[383094319,1756845061482,-2376.02,0.00015068,2]
[383094320,1756845061493,-480.0,0.00015068,2]
[383094321,1756845061502,-544.19,0.00015068,2]
[383094322,1756845061512,-480.0,0.00015068,2]
[383094323,1756845061522,-582.94,0.00015068,2]
[383094324,1756845061531,-480.0,0.00015068,2]
[383094325,1756845061542,-480.0,0.00015068,2]
[383094326,1756845061552,-480.0,0.00015068,2]
[383094327,1756845061561,-1197.43,0.00015068,2]
[383094328,1756845061571,-480.0,0.00015068,2]
[383094329,1756845061580,-1244.68,0.00015068,2]
[383094330,1756845061590,-480.0,0.00015068,2]
[383094331,1756845061600,-767.09,0.00015068,2]
[383094332,1756845061610,-480.0,0.00015068,2]
[383094333,1756845061620,-480.0,0.00015068,2]
[383094334,1756845061629,-480.0,0.00015068,2]
[383094335,1756845061638,-506.6,0.00015068,2]
[383094336,1756845061648,-480.0,0.00015068,2]
[383094337,1756845061657,-1939.67,0.00015068,2]
[383094338,1756845061667,-591.44,0.00015068,2]
[383094339,1756845061677,-480.0,0.00015068,2]
[383094340,1756845061686,-300.87426698,0.00015068,2]
[383094341,1756845061695,-1532.22705885,0.00015068,2]
[383094342,1756845061706,-1500.0,0.00015068,2]
[383094343,1756845061715,-1500.0,0.00015068,2]
[383094344,1756845061726,-1500.0,0.00015068,2]
[383094345,1756845061735,-1539.82968284,0.00015068,2]
[383094346,1756845061744,-500.0,0.00015068,2]
[383094347,1756845061754,-1500.0,0.00015068,2]
[383094348,1756845061764,-151.0,0.000151,2]
[383094349,1756845061774,-151.0,0.000152,2]
[383094350,1756845061784,-151.0,0.000152,2]
[383094351,1756845061796,-151.0,0.000153,2]
[383094352,1756845061805,-1000.0,0.00015312,2]
[383094353,1756845061815,-1000.0,0.00015312,2]
[383094354,1756845061825,-1000.0,0.00015312,2]
[383094355,1756845061834,-1000.0,0.00015312,2]
[383094356,1756845061844,-1095.12275458,0.00015312,2]
[383094357,1756845061853,-1000.0,0.00015312,2]
[383094358,1756845061863,-1000.0,0.00015312,2]
[383094359,1756845061872,-500.0,0.00015318,2]
[383094360,1756845061881,-500.0,0.00015318,2]
[383094361,1756845061891,-500.0,0.00015318,2]
[383094362,1756845061900,-514.41749093,0.00015318,2]
[383094363,1756845061910,-500.0,0.00015318,2]
[383094364,1756845061920,-500.0,0.00015318,2]
[383094365,1756845061930,-500.0,0.00015318,2]
[383094366,1756845061940,-500.0,0.00015318,2]
[383094367,1756845061950,-167.76215526,0.00015318,2]
[383094368,1756845061960,-500.0,0.00015318,2]
[383094369,1756845061969,-500.0,0.00015318,2]
[383094370,1756845061979,-500.0,0.00015318,2]
[383094371,1756845061989,-500.0,0.00015318,2]
[383094372,1756845061998,-500.0,0.00015318,2]
[383094373,1756845062008,-500.0,0.00015318,2]
[383094374,1756845062017,-501.23380511,0.00015318,2]
[383094375,1756845062027,-359.42534128,0.00015341,2]
[383094376,1756845062037,-500.0,0.00015342,2]
[383094377,1756845062047,-1407.28,0.00015342,2]
[383094378,1756845062056,-480.0,0.00015342,2]
[383094379,1756845062066,-480.0,0.00015342,2]
[383094380,1756845062076,-480.0,0.00015342,2]
[383094381,1756845062085,-480.0,0.00015342,2]
[383094382,1756845062095,-175.39,0.00015342,2]
[383094383,1756845062104,-480.0,0.00015342,2]
[383094384,1756845062114,-480.0,0.00015342,2]
[383094385,1756845062123,-480.0,0.00015342,2]
[383094386,1756845062132,-480.0,0.00015342,2]
[383094387,1756845062142,-480.0,0.00015342,2]
[383094388,1756845062152,-480.0,0.00015342,2]
[383094389,1756845062162,-480.0,0.00015342,2]
[383094390,1756845062171,-328.8,0.00015342,2]
[383094391,1756845062181,-480.0,0.00015342,2]
[383094392,1756845062190,-480.0,0.00015342,2]
[383094393,1756845062200,-480.0,0.00015342,2]
[383094394,1756845062210,-480.0,0.00015342,2]
[383094395,1756845062219,-480.0,0.00015342,2]
[383094396,1756845062229,-439.09,0.00015342,2]
[383094397,1756845062238,-480.0,0.00015342,2]
[383094398,1756845062248,-480.0,0.00015342,2]
[383094399,1756845062258,-480.0,0.00015342,2]